Workbook

Sheet Лист1
D1: Таблица 1 к Приложению 3
B2: Информация об изменениях объемов финансирования и целевых показателей муниципальной программы города Усолье-Сибирское "Охрана окружающей среды" на 2019-2027 годы за 2025 год
B4: Наименование программы, подпрограммы, основного мероприятия, мероприятия, проекта | C4: Источники финансирования / Наименование целевого показателя | D4: Предусмотренный объем финансирования (тыс. руб.) / Значение целевого показателя
D5: Редакция программы от 25.02.2025 № 320-па (на начало отчетного периода) | E5: Редакция программы от 26.12.2025 № 2476-па (на конец отчетного периода)
B6: 1 | C6: 2 | D6: 3 | E6: 4
B7: Муниципальная программа города Усолье-Сибирское "Охрана окружающей среды" на 2019-2027 годы | C7: Всего | D7: =D8+D9 -> 26,099.18 | E7: =E8+E9 -> 37,398.41
C8: Бюджет города | D8: =D15+D60+D70+D90+D84 -> 26,099.18 | E8: =E15+E60+E70+E84+E90 -> 37,398.41
C9: Областной бюджет | D9: =D16 -> 0.00 | E9: =E16 -> 0.00
C10: Целевой показатель 1. Доля исполненных мероприятий по снижению уровня негативного воздействия на окружающую среду от запланированных (%). | D10: 100 | E10: 100
C11: Целевой показатель 2. Доля исполненных мероприятий по развитию зеленого фонда города от запланированных (%). | D11: 100 | E11: 100
C12: Целевой показатель 3. Доля исполненных мероприятий по защите объектов от наводнения и иного негативного воздействия вод и восстановление водных объектов до состояния, обеспечивающего экологически благоприятные условия жизни населения, от запланированных (%). | D12: 100 | E12: 100
C13: Целевой показатель 4. Доля исполненных мероприятий по предупреждению чрезвычайных ситуаций и обеспечению пожарной безопасности от запланированных (%). | D13: 100 | E13: 100
B14: Подпрограмма № 1 "Снижение экологической нагрузки на городскую среду города Усолье-Сибирское" на 2019-2027 годы | C14: Всего | D14: =D15+D16 -> 14,262.46 | E14: =E15+E16 -> 25,203.73
C15: Бюджет города | D15: =D24+D41+D48+D51+D54+D57 -> 14,262.46 | E15: =E24+E41+E48+E51+E54+E57 -> 25,203.73
C16: Областной бюджет | D16: =D25+D42 -> 0.00 | E16: =E25+E42 -> 0.00
C17: Целевой показатель 1. Доля исполненных мероприятий по уборке и улучшению санитарного состояния территории города Усолье-Сибирское, от запланированных (%) | D17: 100 | E17: 100
C18: Целевой показатель 2. Количество обслуживаемых мест (площадок) накопления твердых коммунальных отходов (ед.) | D18: 174 | E18: 174
C19: Целевой показатель 3. Количество отловленных животных без владельцев (шт.) | D19: 0 | E19: 535
C20: Целевой показатель 6. Доля уничтоженных очагов произрастания дикорастущих наркосодержащих растений, от количества таких очагов, выявленных гражданами, полицией (%) | D20: 100 | E20: 100
C21: Целевой показатель 11. Количество проведенных лабораторных исследований на территории города Усолье-Сибирское (проб) | D21: 0 | E21: 7
C22: Целевой показатель 12. Доля исполненных мероприятий по проектированию, восстановлению, содержанию полигона для размещения снежных масс, от запланированных (%) | D22: 100 | E22: 100
B23: Основное мероприятие 1.1. Уборка и улучшение санитарного состояния территории города Усолье-Сибирское | C23: Всего | D23: =D24+D25 -> 12,815.31 | E23: =E24+E25 -> 16,057.62
C24: Бюджет города | D24: =D28+D31+D35 -> 12,815.31 | E24: =E28+E31+E35+E38 -> 16,057.62
C25: Областной бюджет | D25: =D32 -> 0.00 | E25: =E32 -> 0.00
C26: Целевой показатель 1. Доля исполненных мероприятий по уборке и улучшению санитарного состояния территории города Усолье-Сибирское, от запланированных (%) | D26: 100 | E26: 100
B27: 1.1.1. Уборка территории города Усолье-Сибирское в период месячника по санитарной очистке и общегородского субботника | C27: Всего | D27: =D28 -> 1,468.48 | E27: =E28 -> 4,364.92
C28: Бюджет города | D28: 1,468.48 | E28: 4,364.92
C29: Значение целевого показателя относится к основному мероприятию 1.1. Уборка и улучшение санитарного состояния территории города Усолье – Сибирское | D29: * | E29: *
B30: 1.1.2. Сбор, транспортирование и утилизация (захоронение) твердых коммунальных отходов с несанкционированных мест размещения отходов | C30: Всего | D30: =D31+D32 -> 6,822.39 | E30: =E31+E32 -> 4,169.18
C31: Бюджет города | D31: 6,822.39 | E31: 4,169.18
C32: Областной бюджет | D32: 0.00 | E32: 0.00
C33: Значение целевого показателя относится к основному мероприятию 1.1. Уборка и улучшение санитарного состояния территории города Усолье – Сибирское | D33: * | E33: *
B34: 1.1.3. Содержание городских кладбищ | C34: Всего | D34: =D35 -> 4,524.44 | E34: =E35 -> 7,401.03
C35: Бюджет города | D35: 4,524.44 | E35: 7,401.03
C36: Значение целевого показателя относится к основному мероприятию 1.1. Уборка и улучшение санитарного состояния территории города Усолье – Сибирское | D36: * | E36: *
B37: 1.1.6. Подбор павших животных на территории города Усолье-Сибирское | C37: Всего | D37: =D38 -> 0.00 | E37: =E38 -> 122.50
C38: Бюджет города | D38: 0.00 | E38: 122.50
C39: Значение целевого показателя относится к основному мероприятию 1.1. Уборка и улучшение санитарного состояния территории города Усолье – Сибирское | D39: * | E39: *
B40: Основное мероприятие 1.2. Создание и обслуживание мест (площадок) накопления твердых коммунальных отходов | C40: Всего | D40: =D41+D42 -> 0.00 | E40: =E41+E42 -> 6,576.31
C41: Бюджет города | D41: =D45 -> 0.00 | E41: =E45 -> 6,576.31
C42: Областной бюджет | D42: 0.00 | E42: 0.00
C43: Целевой показатель 2. Количество обслуживаемых мест (площадок) накопления твердых коммунальных отходов (ед.) | D43: 174 | E43: 174
B44: 1.2.2. Обслуживание мест (площадок) накопления твердых коммунальных отходов | C44: Всего | D44: =D45 -> 0.00 | E44: =E45 -> 6,576.31
C45: Бюджет города | D45: 0.00 | E45: 6,576.31
C46: Значение целевого показателя относится к основному мероприятию 1.2. Создание и обслуживание мест (площадок) накопления твердых коммунальных отходов | D46: * | E46: *
B47: Основное мероприятие 1.3. Мероприятия по отлову и содержанию животных без владельцев | C47: Всего | D47: =D48 -> 0.00 | E47: =E48 -> 900.00
C48: Бюджет города | D48: 0.00 | E48: 900.00
C49: Целевой показатель 3. Количество отловленных животных без владельцев (шт.) | D49: 0 | E49: 535
B50: Основное мероприятие 1.4. Мероприятия по уничтожению дикорастущих наркосодержащих растений. | C50: Всего | D50: =D51 -> 0.00 | E50: =E51 -> 200.00
C51: Бюджет города | D51: 0.00 | E51: 200.00
C52: Целевой показатель 6. Доля уничтоженных очагов произрастания дикорастущих наркосодержащих растений, от количества таких очагов, выявленных гражданами, полицией (%) | D52: 100 | E52: 100
B53: Основное мероприятие 1.9. Проведение лабораторных исследований на территории города Усолье-Сибирское | C53: Всего | D53: =D54 -> 0.00 | E53: =E54 -> 212.97
C54: Бюджет города | D54: 0.00 | E54: 212.97
C55: Целевой показатель 11. Количество проведенных лабораторных исследований на территории города Усолье-Сибирское (проб) | D55: 0 | E55: 7
B56: Основное мероприятие 1.11. Мероприятия по организации площадки для складирования отходов от зимней уборки на территории г. Усолье-Сибирское | C56: Всего | D56: =D57 -> 1,447.15 | E56: =E57 -> 1,256.83
C57: Бюджет города | D57: 1,447.15 | E57: 1,256.83
C58: Целевой показатель 12. Доля исполненных мероприятий по проектированию, восстановлению, содержанию полигона для размещения снежных масс, от запланированных (%) | D58: 100 | E58: 100
B59: Подпрограмма 2 "Озеленение территории города и восстановление природных ресурсов" на 2019-2027 годы | C59: Всего | D59: =D60 -> 6,382.77 | E59: =E60 -> 5,709.98
C60: Бюджет города | D60: =D64+D67 -> 6,382.77 | E60: =E64+E67 -> 5,709.98
C61: Целевой показатель 1. Доля исполненных мероприятий по содержанию и озеленению объектов общего пользования, расположенных на территории города, от запланированных (%) | D61: 100 | E61: 100
C62: Целевой показатель 2. Наличие лесоустроительной документации городских лесов (1 – наличие/ 0 – отсутствие) (ед.) | D62: 1 | E62: 1
B63: Основное мероприятие 2.1 Озеленение территории города | C63: Всего | D63: =D64 -> 6,382.77 | E63: =E64 -> 5,709.98
C64: Бюджет города | D64: 6,382.77 | E64: 5,709.98
C65: Целевой показатель 1. Доля исполненных мероприятий по содержанию и озеленению объектов общего пользования, расположенных на территории города, от запланированных (%) | D65: 100 | E65: 100
B66: Основное мероприятие 2.2 Лесоустройство городских лесов | C66: Всего | D66: =D67 -> 0.00 | E66: =E67 -> 0.00
C67: Бюджет города | D67: 0.00 | E67: 0.00
C68: Целевой показатель 2. Наличие лесоустроительной документации городских лесов (1 – наличие/ 0 – отсутствие) (ед.) | D68: 1 | E68: 1
B69: Подпрограмма 3 "Развитие водохозяйственного комплекса" на 2019-2027 годы | C69: Всего | D69: =D70 -> 2,255.49 | E69: =E70 -> 4,048.29
C70: Бюджет города | D70: =D75+D78 -> 2,255.49 | E70: =E75+E78 -> 4,048.29
C71: Целевой показатель 1. Протяженность очищенного русла рек Шелестиха, Скипидарка (км.) | D71: 2.2 | E71: 2.2
C72: Целевой показатель 2. Количество водозаборных скважин, содержание которых выполнено (ед.) | D72: 4 | E72: 4
C73: Целевой показатель 3. Доля населения, обеспеченного питьевой водой, отвечающей требованиям безопасности, в общей численности населения (%) | D73: 98 | E73: 98
B74: Основное мероприятие 3.1. Мероприятия по предотвращению разлива рек Шелестиха, Скипидарка | C74: Всего | D74: =D75 -> 552.82 | E74: =E75 -> 1,235.50
C75: Бюджет города | D75: 552.82 | E75: 1,235.50
C76: Целевой показатель 1. Протяженность очищенного русла рек Шелестиха, Скипидарка (км.) | D76: 2.2 | E76: 2.2
B77: Основное мероприятие 3.2. Содержание водозаборных скважин | C77: Всего | D77: =D78 -> 1,702.67 | E77: =E78 -> 2,812.79
C78: Бюджет города | D78: 1,702.67 | E78: 2,812.79
C79: Целевой показатель 2. Количество водозаборных скважин, содержание которых выполнено (ед.) | D79: 4 | E79: 4
B80: Основное мероприятие 3.3. Проектирование сетей водоснабжения города Усолье – Сибирское | C80: Всего | D80: =D81 -> 0.00 | E80: =E81 -> 0.00
C81: Бюджет города | D81: 0.00 | E81: 0.00
C82: Целевой показатель 3. Доля населения, обеспеченного питьевой водой, отвечающей требованиям безопасности, в общей численности населения (%) | D82: 98 | E82: 98
B83: Подпрограмма 4 "Экологическое образование населения" на 2019-2027 годы | C83: Всего | D83: =D84 -> 71.50 | E83: =E84 -> 79.20
C84: Бюджет города | D84: =D87 -> 71.50 | E84: =E87 -> 79.20
C85: Целевой показатель 3. Количество изготовленных и установленных информационных щитов (баннеров, аншлагов) на территории города Усолье-Сибирское (шт.) | D85: 30 | E85: 11
B86: Основное мероприятие 4.3. Количество изготовленных и установленных информационных щитов (баннеров, аншлагов) на территории города Усолье-Сибирское | C86: Всего | D86: =D87 -> 71.50 | E86: =E87 -> 79.20
C87: Бюджет города | D87: 71.50 | E87: 79.20
C88: Целевой показатель 3. Количество изготовленных и установленных информационных щитов (баннеров, аншлагов) на территории города Усолье-Сибирское (шт.) | D88: 30 | E88: 11
B89: Подпрограмма № 5 "Предотвращение чрезвычайных ситуаций и обеспечение пожарной безопасности" на 2019-2027 годы | C89: Всего | D89: =D90 -> 3,126.95 | E89: =E90 -> 2,357.21
C90: Бюджет города | D90: =D97+D100+D103+D106+D109 -> 3,126.95 | E90: =E97+E100+E103+E106+E109 -> 2,357.21
C91: Целевой показатель 1. Протяженность минерализованной полосы, подлежащей опашке и прочистке (км.) | D91: 18.5 | E91: 35.26
C92: Целевой показатель 2. Количество изготовленной информации по противопожарной пропаганде (шт). | D92: 5,004 | E92: 6,000
C93: Целевой показатель 3. Доля исполненных мероприятий по тушению лесных пожаров в границах города Усолье-Сибирское от запланированных (%) | D93: 0 | E93: 100
C94: Целевой показатель 5. Количество изготовленных и установленных информационных аншлагов (знаков) (шт.) | D94: 20 | E94: 4
C95: Целевой показатель 7. Площадь скошенной травянистой растительности (100 м2) | D95: 38,500.00 | E95: 1,226.00
B96: Основное мероприятие 5.1. Устройство и обновление противопожарных минерализованных полос на территории города Усолье-Сибирское | C96: Всего | D96: =D97 -> 1,370.58 | E96: =E97 -> 1,370.58
C97: Бюджет города | D97: 1,370.58 | E97: 1,370.58
C98: Целевой показатель 1. Протяженность минерализованной полосы, подлежащей опашке и прочистке (км.) | D98: 18.5 | E98: 35.26
B99: Основное мероприятие 5.2. Противопожарная пропаганда (баннеры, листовки, календари, магниты) | C99: Всего | D99: =D100 -> 99.60 | E99: =E100 -> 97.84
C100: Бюджет города | D100: 99.60 | E100: 97.84
C101: Целевой показатель 2. Количество изготовленной информации по противопожарной пропаганде (шт). | D101: =D92 -> 5004 | E101: 6000
B102: Основное мероприятие 5.3. Организация тушения лесных пожаров на границах города Усолье-Сибирское | C102: Всего | D102: =D103 -> 101.79 | E102: =E103 -> 43.28
C103: Бюджет города | D103: 101.79 | E103: 43.28
C104: Целевой показатель 3. Доля исполненных мероприятий по тушению лесных пожаров в границах города Усолье-Сибирское от запланированных (%) | D104: =D93 -> 0 | E104: 100
B105: Основное мероприятие 5.5. Мероприятия по обеспечению безопасности на водных объектах | C105: Всего | D105: =D106 -> 33.00 | E105: =E106 -> 35.10
C106: Бюджет города | D106: 33.00 | E106: 35.10
C107: Целевой показатель 5. Количество изготовленных и установленных информационных аншлагов (знаков) (шт.) | D107: =D94 -> 20 | E107: 4
B108: Основное мероприятие 5.6. Покос травянистой растительности | C108: Всего | D108: =D109 -> 1,521.99 | E108: =E109 -> 810.41
C109: Бюджет города | D109: 1,521.99 | E109: 810.41
C110: Целевой показатель 7. Площадь скошенной травянистой растительности (100 м2) | D110: 38,500.00 | E110: 1,226.00
B113: Мэр города Усолье-Сибирское | D113: М.В. Торопкин
